fUST/lending_fUST_20250816
["ID","MTS","AMOUNT","RATE_DAILY","PERIOD"]
[379474423,1755300644834,-151.0,0.00027571,7]
[379474424,1755300644843,-151.0,0.00027571,7]
[379474425,1755300644852,-151.0,0.00027571,7]
[379474426,1755300644862,-256.406403,0.00027571,7]
[379474427,1755300644871,-151.0,0.00027571,7]
[379474428,1755300644881,-151.0,0.00027571,7]
[379474429,1755300644891,-151.0,0.00027571,7]
[379474430,1755300644900,-151.0,0.00027571,7]
[379474431,1755300644910,-151.0,0.00027571,7]
[379474432,1755300644919,-212.334282,0.00027571,7]
[379474433,1755300644928,-151.0,0.00027571,7]
[379474434,1755300644937,-151.0,0.00027571,7]
[379474435,1755300644947,-151.0,0.00027571,7]
[379474436,1755300644956,-151.0,0.00027571,7]
[379474437,1755300644965,-279.783415,0.00027571,7]
[379474438,1755300644976,-162.945879,0.00027571,7]
[379474439,1755300644985,-279.783415,0.00027571,7]
[379474440,1755300644994,-279.783415,0.00027571,7]
[379474441,1755300645004,-279.783415,0.00027571,7]
[379474442,1755300645013,-279.783415,0.00027571,7]
[379474443,1755300645023,-279.783408,0.00027571,7]
[379474444,1755300645033,-888.145305,0.00027571,7]
[379474445,1755300645043,-888.145305,0.00027571,7]
[379474446,1755300645052,-888.145305,0.00027571,7]
[379474447,1755300645061,-888.145305,0.00027571,7]
[379474448,1755300645070,-888.145305,0.00027571,7]
[379474449,1755300645079,-888.145305,0.00027571,7]
[379474450,1755300645089,-888.145305,0.00027571,7]
[379474451,1755300645098,-888.145305,0.00027571,7]
[379474452,1755300645107,-888.145305,0.00027571,7]
[379474453,1755300645116,-888.145305,0.00027571,7]
[379474454,1755300645126,-888.145305,0.00027571,7]
[379474455,1755300645135,-888.145305,0.00027571,7]
[379474456,1755300645145,-888.145305,0.00027571,7]
[379474457,1755300645154,-888.145305,0.00027571,7]
[379474458,1755300645163,-888.145305,0.00027571,7]
[379474459,1755300645172,-888.145305,0.00027571,7]
[379474460,1755300645182,-888.145305,0.00027571,7]
[379474461,1755300645191,-888.14531,0.00027571,7]
[379474462,1755300645200,-151.0,0.00027571,7]
[379474463,1755300645209,-151.0,0.00027571,7]
[379474464,1755300645218,-151.0,0.00027571,7]
[379474465,1755300645227,-151.0,0.00027571,7]
[379474466,1755300645237,-151.0,0.00027571,7]
[379474467,1755300645246,-151.0,0.00027571,7]
[379474468,1755300645255,-151.0,0.00027571,7]
[379474469,1755300645265,-151.0,0.00027571,7]
[379474470,1755300645274,-151.0,0.00027571,7]
[379474471,1755300645284,-151.0,0.00027571,7]
[379474472,1755300645293,-151.0,0.00027571,7]
[379474473,1755300645303,-151.0,0.00027571,7]
[379474474,1755300645312,-151.0,0.00027571,7]
[379474475,1755300645321,-151.0,0.00027571,7]
[379474476,1755300645331,-151.0,0.00027571,7]
[379474477,1755300645340,-235.0,0.00027571,7]
[379474478,1755300645349,-151.0,0.00027571,7]
[379474479,1755300645358,-151.0,0.00027571,7]
[379474480,1755300645368,-151.0,0.00027571,7]
[379474481,1755300645377,-151.0,0.00027571,7]
[379474482,1755300645386,-151.0,0.00027571,7]
[379474483,1755300645397,-151.0,0.00027571,7]
[379474484,1755300645406,-152.159054,0.00027571,7]
[379474485,1755300645415,-151.0,0.00027571,7]
[379474486,1755300645425,-151.0,0.00027571,7]
[379474487,1755300645434,-151.0,0.00027571,7]
[379474488,1755300645443,-327.670197,0.00027571,7]
[379474489,1755300645453,-327.670197,0.00027571,7]
[379474490,1755300645462,-151.0,0.00027571,7]
[379474491,1755300645471,-298.746376,0.00027571,7]
[379474492,1755300645480,-298.746376,0.00027571,7]
[379474493,1755300645489,-584.790166,0.00027571,7]
[379474494,1755300645498,-584.790166,0.00027571,7]
[379474495,1755300645508,-154.508779,0.00027571,7]
[379474496,1755300645518,-154.508779,0.00027571,7]
[379474497,1755300645527,-439.39284,0.00027571,7]
[379474498,1755300645537,-439.39284,0.00027571,7]
[379474499,1755300645548,-151.0,0.00027571,7]
[379474500,1755300645558,-151.0,0.00027571,7]
[379474501,1755300645567,-151.0,0.00027571,7]
[379474502,1755300645577,-419.530307,0.00027571,7]
[379474503,1755300645586,-419.530307,0.00027571,7]
[379474504,1755300645597,-151.0,0.00027571,7]
[379474505,1755300645606,-169.466437,0.00027571,7]
[379474506,1755300645616,-169.466437,0.00027571,7]
[379474507,1755300645625,-151.0,0.00027572,7]
[379474508,1755300645635,-500.0,0.00027573,5]
[379474509,1755300645645,-500.0,0.00027573,5]
[379474510,1755300645655,-151.0,0.00027573,7]
[379474511,1755300645665,-151.0,0.00027573,7]
[379474513,1755300645674,-151.0,0.00027573,7]
[379474515,1755300645684,-151.0,0.00027573,7]
[379474517,1755300645693,-151.0,0.00027573,7]
[379474519,1755300645703,-151.0,0.00027573,7]
[379474521,1755300645712,-151.0,0.00027573,7]
[379474522,1755300645721,-151.0,0.00027573,7]
[379474524,1755300645730,-151.0,0.00027573,7]
[379474526,1755300645740,-151.0,0.00027573,7]
[379474528,1755300645750,-151.0,0.00027573,7]
[379474529,1755300645759,-151.0,0.00027573,7]
[379474530,1755300645769,-151.0,0.00027573,7]
[379474531,1755300645779,-151.0,0.00027573,7]
[379474532,1755300645788,-151.0,0.00027573,7]
[379474533,1755300645798,-167.03493068,0.00027573,7]
[379474535,1755300645807,-151.0,0.00027573,7]
[379474537,1755300645816,-151.0,0.00027573,7]
[379474539,1755300645826,-154.683313,0.00027573,7]
[379474541,1755300645836,-200.51664821,0.00027574,10]
[379474542,1755300645846,-160.0,0.00027575,10]
[379474543,1755300645855,-151.0,0.00027575,7]
[379474544,1755300645864,-164.412172,0.00027575,7]
[379474545,1755300645874,-164.412172,0.00027575,7]
[379474546,1755300645883,-164.412172,0.00027575,7]
[379474549,1755300645893,-164.412172,0.00027575,7]
[379474550,1755300645990,-164.412172,0.00027575,7]
[379474551,1755300645999,-164.412172,0.00027575,7]
[379474552,1755300646009,-164.412172,0.00027575,7]
[379474553,1755300646018,-164.412172,0.00027575,7]
[379474554,1755300646028,-164.412172,0.00027575,7]
[379474555,1755300646037,-164.412172,0.00027575,7]
[379474556,1755300646047,-164.412172,0.00027575,7]
[379474557,1755300646056,-164.412172,0.00027575,7]
[379474558,1755300646065,-164.412172,0.00027575,7]
[379474559,1755300646075,-164.412173,0.00027575,7]
[379474560,1755300646084,-151.0,0.00027575,7]
[379474561,1755300646093,-151.0,0.00027575,7]
[379474562,1755300646102,-151.0,0.00027575,7]
[379474563,1755300646112,-151.0,0.00027575,7]
[379474565,1755300646122,-151.0,0.00027575,7]
[379474566,1755300646131,-168.336471,0.00027575,7]
[379474567,1755300646141,-151.0,0.00027575,7]
[379474568,1755300646150,-151.0,0.00027575,7]
[379474569,1755300646159,-151.0,0.00027575,7]
[379474570,1755300646168,-151.0,0.00027575,7]
[379474571,1755300646177,-151.0,0.00027575,7]
[379474572,1755300646187,-151.0,0.00027575,7]
[379474573,1755300646196,-151.0,0.00027575,7]
[379474574,1755300646205,-181.383421,0.00027575,7]
[379474575,1755300646215,-151.0,0.00027575,7]
[379474576,1755300646224,-151.0,0.00027575,7]
[379474577,1755300646234,-151.0,0.00027575,7]
[379474578,1755300646243,-151.0,0.00027575,7]
[379474579,1755300646252,-151.0,0.00027575,7]
[379474580,1755300646261,-151.0,0.00027575,7]
[379474581,1755300646271,-151.0,0.00027575,7]
[379474582,1755300646280,-151.0,0.00027575,7]
[379474583,1755300646289,-151.0,0.00027575,7]
[379474584,1755300646299,-151.0,0.00027575,7]
[379474585,1755300646308,-151.0,0.00027575,7]
[379474586,1755300646317,-181.066275,0.00027575,7]
[379474587,1755300646327,-151.0,0.00027575,7]
[379474588,1755300646336,-151.0,0.00027575,7]
[379474589,1755300646346,-151.0,0.00027575,7]
[379474590,1755300646355,-151.0,0.00027575,7]
[379474591,1755300646365,-151.0,0.00027575,7]
[379474592,1755300646374,-151.0,0.00027575,7]
[379474593,1755300646383,-151.0,0.00027575,7]
[379474594,1755300646392,-151.0,0.00027575,7]
[379474595,1755300646402,-151.0,0.00027575,7]
[379474596,1755300646411,-151.0,0.00027575,7]
[379474597,1755300646420,-151.0,0.00027575,7]
[379474598,1755300646429,-151.0,0.00027575,7]
[379474599,1755300646438,-151.0,0.00027575,7]
[379474600,1755300646447,-243.5,0.00027575,7]
[379474601,1755300646457,-327.670197,0.00027575,7]
[379474602,1755300646466,-327.670197,0.00027575,7]
[379474603,1755300646475,-327.670197,0.00027575,7]
[379474604,1755300646485,-327.670197,0.00027575,7]
[379474605,1755300646494,-327.670197,0.00027575,7]
[379474606,1755300646504,-327.670197,0.00027575,7]
[379474607,1755300646513,-327.670197,0.00027575,7]
[379474608,1755300646523,-327.670197,0.00027575,7]
[379474609,1755300646533,-327.670197,0.00027575,7]
[379474610,1755300646542,-327.670197,0.00027575,7]
[379474611,1755300646554,-327.670197,0.00027575,7]
[379474612,1755300646563,-327.670197,0.00027575,7]
[379474613,1755300646573,-327.670197,0.00027575,7]
[379474614,1755300646582,-327.670205,0.00027575,7]
[379474615,1755300646592,-298.746376,0.00027575,7]
[379474616,1755300646602,-298.746376,0.00027575,7]
[379474617,1755300646611,-298.746376,0.00027575,7]
[379474618,1755300646621,-298.746376,0.00027575,7]
[379474619,1755300646632,-298.746376,0.00027575,7]
[379474620,1755300646642,-298.746376,0.00027575,7]
[379474621,1755300646653,-298.746376,0.00027575,7]
[379474622,1755300646664,-298.746376,0.00027575,7]
[379474623,1755300646674,-298.746376,0.00027575,7]
[379474624,1755300646683,-298.746376,0.00027575,7]
[379474625,1755300646692,-298.746376,0.00027575,7]
[379474626,1755300646702,-298.746376,0.00027575,7]
[379474627,1755300646712,-584.790166,0.00027575,7]
[379474628,1755300646721,-298.746376,0.00027575,7]
[379474629,1755300646731,-584.790166,0.00027575,7]
[379474630,1755300646741,-298.746376,0.00027575,7]
[379474631,1755300646750,-584.790166,0.00027575,7]
[379474632,1755300646759,-584.790166,0.00027575,7]
[379474633,1755300646769,-584.790166,0.00027575,7]
[379474634,1755300646778,-298.746376,0.00027575,7]
[379474635,1755300646787,-584.790166,0.00027575,7]
[379474636,1755300646796,-298.746372,0.00027575,7]
[379474637,1755300646806,-584.790166,0.00027575,7]
[379474638,1755300646815,-584.790166,0.00027575,7]
[379474639,1755300646824,-584.790166,0.00027575,7]
[379474640,1755300646833,-584.790166,0.00027575,7]
[379474641,1755300646843,-584.790166,0.00027575,7]
[379474642,1755300646852,-584.790166,0.00027575,7]
[379474643,1755300646862,-584.790166,0.00027575,7]
[379474644,1755300646871,-584.790166,0.00027575,7]
[379474645,1755300646881,-584.790166,0.00027575,7]
[379474646,1755300646891,-584.79016255,0.00027575,7]
[379474647,1755300646900,-417.15472785,0.00027576,30]
[379474648,1755300646910,-154.5425,0.00027576,7]
[379474649,1755300646919,-151.0,0.00027576,7]
[379474650,1755300646928,-151.0,0.00027576,7]
[379474651,1755300646937,-151.0,0.00027576,7]
[379474652,1755300646947,-151.0,0.00027576,7]
[379474653,1755300646956,-152.301724,0.00027576,7]
[379474654,1755300646966,-151.0,0.00027576,7]
[379474655,1755300646975,-290.094404,0.00027576,7]
[379474656,1755300646984,-151.0,0.00027576,7]
[379474657,1755300646994,-151.0,0.00027576,7]
[379474658,1755300647003,-151.0,0.00027576,7]
[379474659,1755300647013,-151.505672,0.00027576,7]
[379474660,1755300647022,-151.0,0.00027576,7]
[379474661,1755300647032,-151.0,0.00027576,7]
[379474662,1755300647042,-151.0,0.00027576,7]
[379474663,1755300647051,-151.0,0.00027576,7]
[379474664,1755300647060,-260.038966,0.00027576,7]
[379474665,1755300647069,-154.508779,0.00027576,7]
[379474666,1755300647079,-154.508779,0.00027576,7]
[379474667,1755300647088,-154.508779,0.00027576,7]
[379474668,1755300647097,-154.508779,0.00027576,7]
[379474669,1755300647106,-154.508779,0.00027576,7]
[379474670,1755300647115,-154.508779,0.00027576,7]
[379474671,1755300647125,-154.508779,0.00027576,7]
[379474672,1755300647134,-154.508779,0.00027576,7]
[379474673,1755300647143,-154.508779,0.00027576,7]
[379474674,1755300647152,-154.508779,0.00027576,7]
[379474675,1755300647162,-154.508779,0.00027576,7]
[379474676,1755300647171,-154.508787,0.00027576,7]
[379474677,1755300647180,-439.39284,0.00027576,7]
[379474678,1755300647190,-439.39284,0.00027576,7]
[379474679,1755300647199,-439.39284,0.00027576,7]
[379474680,1755300647209,-439.39284,0.00027576,7]
[379474681,1755300647218,-439.39284,0.00027576,7]
[379474682,1755300647228,-439.39284,0.00027576,7]
[379474683,1755300647237,-439.39284,0.00027576,7]
[379474684,1755300647247,-439.39284,0.00027576,7]
[379474685,1755300647256,-439.39284,0.00027576,7]
[379474686,1755300647266,-439.39284,0.00027576,7]
[379474687,1755300647276,-439.39284,0.00027576,7]
[379474688,1755300647285,-439.39284,0.00027576,7]
[379474689,1755300647295,-439.39284,0.00027576,7]
[379474690,1755300647304,-439.39284,0.00027576,7]
[379474691,1755300647313,-439.39284,0.00027576,7]
[379474692,1755300647323,-439.392846,0.00027576,7]
[379474693,1755300647332,-151.0,0.00027576,7]
[379474694,1755300647342,-166.891604,0.00027576,7]
[379474695,1755300647351,-151.0,0.00027576,7]
[379474696,1755300647361,-151.0,0.00027576,7]
[379474697,1755300647370,-151.0,0.00027576,7]
[379474698,1755300647379,-151.0,0.00027576,7]
[379474699,1755300647389,-151.0,0.00027576,7]
[379474700,1755300647398,-151.0,0.00027576,7]
[379474701,1755300647407,-151.0,0.00027576,7]
[379474702,1755300647498,-151.0,0.00027576,7]
[379474703,1755300647508,-151.0,0.00027576,7]
[379474704,1755300647519,-151.0,0.00027576,7]
[379474705,1755300647528,-419.530307,0.00027576,7]
[379474706,1755300647538,-419.530307,0.00027576,7]
[379474707,1755300647551,-419.530307,0.00027576,7]
[379474708,1755300647560,-419.530307,0.00027576,7]
[379474709,1755300647570,-419.530307,0.00027576,7]
[379474710,1755300647579,-419.530307,0.00027576,7]
[379474711,1755300647588,-419.530307,0.00027576,7]
[379474712,1755300647599,-419.530307,0.00027576,7]
[379474713,1755300647608,-419.530307,0.00027576,7]
[379474714,1755300647618,-419.530307,0.00027576,7]
[379474715,1755300647629,-419.530307,0.00027576,7]
[379474716,1755300647639,-419.530303,0.00027576,7]
[379474717,1755300647648,-293.168575,0.00027576,7]
[379474718,1755300647657,-169.466437,0.00027576,7]
[379474719,1755300647667,-169.466437,0.00027576,7]
[379474720,1755300647676,-169.466437,0.00027576,7]
[379474721,1755300647685,-169.466437,0.00027576,7]
[379474722,1755300647695,-169.466437,0.00027576,7]
[379474723,1755300647705,-169.466437,0.00027576,7]
[379474724,1755300647715,-169.466437,0.00027576,7]
[379474725,1755300647724,-169.466437,0.00027576,7]
[379474726,1755300647734,-169.466437,0.00027576,7]
[379474727,1755300647743,-169.466437,0.00027576,7]
[379474728,1755300647752,-169.466437,0.00027576,7]
[379474729,1755300647761,-169.466437,0.00027576,7]
[379474730,1755300647771,-169.466437,0.00027576,7]
[379474731,1755300647780,-169.466437,0.00027576,7]
[379474732,1755300647789,-169.466437,0.00027576,7]
[379474733,1755300647798,-169.466433,0.00027576,7]
[379474734,1755300647815,-31319.14672735,0.00027576,20]
[379474735,1755300648895,-683.57,0.00027566,3]
[379474736,1755300648904,-108890.73728016,0.00027576,20]
[379474737,1755300649030,-211.9577337,0.00026416,2]
[379474738,1755300649040,-211.95773369,0.00026961,2]
[379474739,1755300649049,-2449.52,0.0002698,10]
[379474740,1755300649059,-16222.00495079,0.00027576,20]
[379474741,1755300649070,-1072.81722564,0.00027576,20]
[379474742,1755300649081,-3950.1057626,0.00027576,20]
[379474743,1755300649092,-17236.61297152,0.00027576,20]
[379474744,1755300649103,-4421.2679081,0.00027576,20]
[379474750,1755300885635,114530.0,0.00023,30]
[379474797,1755301518798,160.350224,0.00013699,2]
[379474804,1755301629106,-265.37540235,0.000199,2]
[379474805,1755301629130,-180.12,0.00020303,2]
[379474806,1755301629154,-265.37540215,0.00020416,2]
[379474807,1755301629176,-265.37540215,0.00020932,2]
[379474808,1755301629199,-265.37540215,0.00021448,2]
[379474809,1755301629220,-160.350224,0.00021918,2]
[379474810,1755301629243,-39.71423128,0.00021965,2]
[379474811,1755301630076,-225.66117087,0.00021965,2]
[379474812,1755301630096,-272.0,0.00022,2]
[379474813,1755301630120,-161.3736475,0.00022149,2]
[379474814,1755301639593,-198.8563525,0.00022149,2]
[379474815,1755301639618,-160.0,0.00022931,2]
[379474816,1755301639639,-160.0,0.00022931,2]
[379474817,1755301639663,-1200.0,0.00023122,2]
[379474818,1755301639687,-300.0,0.00023122,2]
[379474819,1755301639709,-160.0,0.00023123,2]
[379474820,1755301639729,-160.0,0.00023123,2]
[379474821,1755301639751,-417.15472785,0.00023123,2]
[379474822,1755301639772,-462.0440047,0.00023123,2]
[379474823,1755301639803,-200.0,0.00023585,20]
[379474824,1755301639831,-200.0,0.00023585,20]
[379474825,1755301639858,-200.0,0.00023585,20]
[379474826,1755301639887,-200.0,0.00023585,20]
[379474827,1755301639916,-200.0,0.00023585,20]
[379474828,1755301639945,-200.0,0.00023585,20]
[379474829,1755301639973,-200.0,0.00023585,20]
[379474830,1755301640002,-200.0,0.00023585,20]
[379474831,1755301640030,-540.35,0.00023995,2]
[379474832,1755301640053,-500.0,0.00024602,2]
[379474833,1755301640075,-155.18,0.00024842,7]
[379474834,1755301640096,-215.63758983,0.00024891,2]
[379474835,1755301640118,-232.08354597,0.00024891,2]
[379474836,1755301640139,-216.77912109,0.00024891,2]
[379474837,1755301640162,-843.47195277,0.00024891,2]
[379474838,1755301640186,-160.0,0.00024891,2]
[379474839,1755301640208,-420.0,0.00025097,2]
[379474840,1755301640232,-1200.0,0.00025214,2]
[379474841,1755301640255,-278.04283045,0.00025461,2]
[379474842,1755301640277,-500.0,0.00025698,2]
[379474843,1755301640301,-720.46,0.0002584,2]
[379474844,1755301640322,-151.0,0.00025843,6]
[379474845,1755301640350,-200.0,0.00025878,20]
[379474846,1755301640377,-200.0,0.00025878,20]
[379474847,1755301640404,-200.0,0.00025878,20]
[379474848,1755301640432,-200.0,0.00025878,20]
[379474849,1755301640460,-200.0,0.00025878,20]
[379474850,1755301640487,-200.0,0.00025878,20]
[379474851,1755301640515,-200.0,0.00025878,20]
[379474852,1755301640543,-200.0,0.00025878,20]
[379474853,1755301640570,-200.0,0.00025878,20]
[379474854,1755301640598,-200.0,0.00025878,20]
[379474855,1755301640625,-240.0,0.00025878,20]
[379474856,1755301640648,-210.619,0.00026161,12]
[379474857,1755301640669,-300.0,0.00026161,2]
[379474858,1755301640690,-300.0,0.00026161,2]
[379474859,1755301640711,-151.0,0.00026161,2]
[379474860,1755301640732,-151.0,0.00026161,2]
[379474861,1755301640753,-151.0,0.00026161,2]
[379474862,1755301640776,-300.0,0.00026161,2]
[379474863,1755301640797,-151.0,0.00026161,2]
[379474864,1755301640818,-151.0,0.00026161,2]
[379474865,1755301640839,-300.0,0.00026161,2]
[379474866,1755301640860,-151.0,0.00026161,2]
[379474867,1755301640882,-151.0,0.00026161,2]
[379474868,1755301640907,-315.06065185,0.00026161,2]
[379474869,1755301641034,-151.0,0.00026161,2]
[379474870,1755301641056,-151.0,0.00026161,2]
[379474871,1755301641078,-176.25453225,0.00026161,2]
[379474872,1755301641100,-151.0,0.00026161,2]
[379474873,1755301641123,-151.0,0.00026161,2]
[379474874,1755301641144,-151.0,0.00026161,2]
[379474875,1755301641167,-287.45404034,0.00026161,2]
[379474876,1755301641190,-151.0,0.00026161,2]
[379474877,1755301641214,-151.0,0.00026161,2]
[379474878,1755301641238,-151.0,0.00026161,2]
[379474879,1755301641262,-151.0,0.00026161,2]
[379474880,1755301641285,-151.0,0.00026161,2]
[379474881,1755301641309,-151.0,0.00026161,2]
[379474882,1755301641333,-151.0,0.00026161,2]
[379474883,1755301641356,-151.0,0.00026161,2]
[379474884,1755301641380,-151.0,0.00026161,2]
[379474885,1755301641404,-151.0,0.00026161,2]
[379474886,1755301641427,-151.0,0.00026161,2]
[379474887,1755301641449,-151.0,0.00026286,6]
[379474888,1755301641470,-889.5377199,0.0002663,2]
[379474889,1755301641492,-259.5172063,0.00026715,2]
[379474890,1755301641514,-151.0,0.00026729,7]
[379474891,1755301641535,-171.0794027,0.00026767,2]
[379474892,1755301641556,-500.0,0.00026794,2]
[379474893,1755301641577,-199.7883328,0.0002683,7]
[379474894,1755301641598,-151.0,0.00027071,7]
[379474895,1755301641620,-164.118043,0.00027071,7]
[379474896,1755301641642,-164.118043,0.00027071,7]
[379474897,1755301641664,-151.0,0.00027173,7]
[379474898,1755301641685,-190.07974153,0.00027241,2]
[379474900,1755301651085,-409.12640534,0.000199,2]
[379474905,1755301774638,-353.92576043,0.000199,2]
[379474927,1755301832106,-1038.51203224,0.000199,2]
[379474928,1755301832114,-1033.05688921,0.000199,2]
[379474929,1755301832122,-157.19,0.00020365,2]
[379474930,1755301832128,-2071.56892116,0.00020416,2]
[379474931,1755301832135,-1314.79634163,0.00020932,2]
[379474978,1755301838170,-756.77257953,0.00020932,2]
[379474979,1755301838179,-2071.56892116,0.00021448,2]
[379474980,1755301838190,-300.0,0.00021964,2]
[379474981,1755301838201,-2071.56892116,0.00021965,2]
[379474982,1755301838210,-314.38,0.00022217,2]
[379474983,1755301838220,-2071.56892116,0.00022481,2]
[379474984,1755301838230,-1824.42135023,0.00022997,2]
[379474985,1755301839542,-247.14757093,0.00022997,2]
[379474986,1755301839551,-160.0,0.00023,2]
[379474987,1755301839560,-160.0,0.00023123,2]
[379474988,1755301839569,-160.0,0.000234,2]
[379474989,1755301839578,-160.0,0.000234,2]
[379474990,1755301839588,-215.63758983,0.000234,2]
[379474991,1755301839598,-232.08354597,0.000234,2]
[379474992,1755301839607,-216.77912109,0.00023509,2]
[379474993,1755301839617,-843.47195277,0.00023509,2]
[379474994,1755301839626,-160.0,0.00023509,2]
[379474995,1755301839636,-280.84542372,0.00023513,2]
[379474996,1755301839674,-1790.72349744,0.00023513,2]
[379474997,1755301839684,-420.0,0.00023868,2]
[379474998,1755301839693,-2071.56892116,0.00024029,2]
[379474999,1755301839703,-471.58,0.00024068,2]
[379475000,1755301839712,-185.36188697,0.0002453,2]
[379475001,1755301839722,-2071.56892116,0.00024545,2]
[379475002,1755301839731,-500.0,0.00024602,2]
[379475003,1755301839741,-1822.70553932,0.00025061,2]
[379475024,1755301843965,-248.86338184,0.00025061,2]
[379475025,1755301843978,-2071.56892116,0.00025577,3]
[379475026,1755301843987,-500.0,0.00025698,2]
[379475027,1755301843997,-628.77,0.0002592,2]
[379475028,1755301844006,-587.0,0.00025937,2]
[379475029,1755301844016,-646.57769721,0.00026094,4]
[379475030,1755301844027,-1424.99122395,0.00026094,4]
[379475031,1755301844036,-263.54304095,0.00026161,2]
[379475032,1755301844046,-250.0,0.00026161,2]
[379475033,1755301844055,-250.0,0.00026161,2]
[379475034,1755301844066,-250.0,0.00026161,2]
[379475035,1755301844076,-250.0,0.00026161,2]
[379475036,1755301844085,-250.0,0.00026161,2]
[379475037,1755301844094,-250.0,0.00026161,2]
[379475038,1755301844104,-862.79481418,0.0002651,2]
[379475039,1755301844113,-2071.56892116,0.0002661,5]
[379475040,1755301844122,-862.79481416,0.00026649,2]
[379475041,1755301844132,-173.01147086,0.00026715,2]
[379475042,1755301844141,-862.79481416,0.00026788,2]
[379475043,1755301844151,-862.79481416,0.00026927,2]
[379475044,1755301844160,-862.79481416,0.00027065,2]
[379475045,1755301844170,-2071.56892116,0.00027126,7]
[379475046,1755301844180,-862.79481416,0.00027204,2]
[379475047,1755301844189,-862.79481416,0.00027343,2]
[379475048,1755301844199,-1130.65781939,0.00027355,2]
[379475049,1755301844208,-151.0,0.00027374,2]
[379475050,1755301844218,-197.999999,0.00027374,2]
[379475051,1755301844227,-151.0,0.00027374,2]
[379475052,1755301844236,-204.51895134,0.00027374,2]
[379475053,1755301844246,-500.0,0.00027374,2]
[379475054,1755301844256,-151.0,0.0002738,7]
[379475055,1755301844265,-164.118043,0.0002738,7]
[379475056,1755301844274,-1130.65781937,0.00027383,2]
[379475057,1755301844283,-500.0,0.00027397,5]
[379475058,1755301844293,-1130.65781937,0.00027412,2]
[379475059,1755301844302,-151.0,0.00027417,2]
[379475060,1755301844312,-2974.75,0.00027434,10]
[379475061,1755301844321,-1130.65781937,0.0002744,2]
[379475062,1755301844331,-316.86279824,0.00027442,2]
[379475063,1755301844340,-500.0,0.00027442,2]
[379475064,1755301844349,-502.65015297,0.00027442,2]
[379475066,1755301844358,-171.91569242,0.00027442,2]
[379475068,1755301844367,-500.0,0.00027442,2]
[379475070,1755301844376,-500.0,0.00027442,2]
[379475071,1755301844385,-500.0,0.00027442,2]
[379475072,1755301844394,-500.0,0.00027442,2]
[379475073,1755301844404,-526.1327831,0.00027442,2]
[379475074,1755301844413,-598.62997662,0.00027442,2]
[379475075,1755301844423,-500.0,0.00027442,2]
[379475076,1755301844432,-425.16804829,0.00027443,2]
[379475077,1755301844442,-653.88400271,0.00027443,2]
[379475078,1755301844451,-653.88400271,0.00027443,2]
[379475079,1755301844461,-653.88400271,0.00027443,2]
[379475080,1755301844471,-653.88400271,0.00027443,2]
[379475081,1755301844480,-653.88400271,0.00027443,2]
[379475082,1755301844489,-653.88400271,0.00027443,2]
[379475083,1755301844498,-653.88400271,0.00027443,2]
[379475084,1755301844507,-653.88400271,0.00027443,2]
[379475085,1755301844517,-653.88400271,0.00027443,2]
[379475086,1755301844526,-653.88400271,0.00027443,2]
[379475087,1755301844535,-686.57820285,0.00027443,2]
[379475088,1755301844544,-686.57820285,0.00027443,2]
[379475089,1755301844554,-686.57820285,0.00027443,2]